Cogmind - Beta 16 @@@ ROGUE MODE // 2026.02.06 @ 19:01:33 Player: TheGreatBorealis Result: Destroyed by as-49588 with Assembled Rifle Performance ------------- Evolutions (1) 500 Regions Visited (4) 800 Robots Destroyed (33) 165 Value Destroyed (860) 860 Prototype IDs (0) 0 Alien Tech Used (0) 0 Bonus (0) 0 TOTAL SCORE: 2325 Bonus ------- None Cogmind --------- Core Integrity 0/400 Matter 300/300 Energy 98/100 System Corruption 0% Temperature Cool (0) Movement Core (50) Location -9/Mines Parts ------- > --- POWER (1) -------- (None) > --- PROPULSION (3) --- (None) > --- UTILITY (3) ------ (None) > --- WEAPON (2) ------- (None) > --- INVENTORY (5) ---- Aluminum Leg Compact Wheel Heat Sink Particle Gun Grenade Launcher Peak State ------------ > --- POWER ------------ Ion Engine > --- PROPULSION ------- Light Treads Light Treads Light Treads > --- UTILITY ---------- Small Storage Unit Small Storage Unit Terrain Scanner > --- WEAPON ----------- Heavy Assault Rifle Heavy Assault Rifle > --- INVENTORY -------- Light Treads Compact Wheel Compact Wheel Experimental Sensor Array Medium Laser Medium Laser Particle Gun [Rating: 12] Favorites ----------- Power Light Ion Engine Engine Light Ion Engine Propulsion Aluminum Leg Treads Light Treads Leg Aluminum Leg Utility Small Storage Unit Device Terrain Scanner Storage Small Storage Unit Processor Targeting Computer Weapon Medium Laser Energy Gun Medium Laser Ballistic Gun Heavy Assault Rifle Launcher Rocket Launcher Build | -11 -10 -10 -9 -9 ------- Run | Yrd Mat Min Mat Min Slots Evolved 2 | . . . 2 . Power . | . . . . . Propulsion 1 | . . . 1 . Utility 1 | . . . 1 . Weapon . | . . . . . Parts Attached 21 | . 2 2 11 6 Power 3 | . 1 . 1 1 Engine 3 | . 1 . 1 1 Core . | . . . . . Reactor . | . . . . . Propulsion 9 | . . 1 4 4 Treads 5 | . . . 4 1 Leg 4 | . . 1 . 3 Wheel . | . . . . . Hover . | . . . . . Flight . | . . . . . Utility 3 | . 1 . 2 . Device 1 | . 1 . . . Storage 1 | . . . 1 . Processor 1 | . . . 1 . Hackware . | . . . . . Protection . | . . . . . Artifact . | . . . . . Weapon 6 | . . 1 4 1 Energy Gun 1 | . . . 1 . Energy Cannon . | . . . . . Ballistic Gun 4 | . . . 3 1 Ballistic Cannon . | . . . . . Launcher 1 | . . 1 . . Special Weapon . | . . . . . Impact Weapon . | . . . . . Slashing Weapon . | . . . . . Piercing Weapon . | . . . . . Special Melee Weapon . | . . . . . Unidentified Prototypes . | . . . . . Parts Lost 13 | . 1 . 5 7 Power 3 | . 1 . 1 1 Propulsion 5 | . . . 2 3 Utility 1 | . . . . 1 Weapon 4 | . . . 2 2 Highest Loss Streak 4 | . 1 . 4 3 To Critical Strikes 1 | . . . . 1 Average Backups 7 | 6 6 7 7 7 Power . | 1 . . . . Propulsion 3 | 4 4 4 3 3 Utility 1 | . . . 1 2 Weapon 1 | 1 1 2 2 1 Tool/Special . | . . . . . Unused Backups 10 | . 1 1 1 7 Power 2 | . . . . 2 Propulsion 2 | . . 1 . 1 Utility 3 | . . . . 3 Weapon 2 | . . . 1 1 Tool/Special 1 | . 1 . . . Average Slot Usage (%) 90 | . 90 100 91 83 Engine 11 | . 14 14 8 9 Treads 9 | . . . 21 12 Leg 17 | . 28 28 6 11 Device 10 | . 5 14 11 9 Storage 13 | . 14 14 19 9 Processor 3 | . . . 2 9 Energy Gun 10 | . 28 20 2 . Ballistic Gun 10 | . . . 16 19 Launcher 2 | . . 7 1 . Peak Build Rating 12 | 6 7 9 12 12 Average Rating 8 | 6 6 8 10 9 On Entrance 8 | 6 6 7 9 12 Avg Prop Armor Cover (%) 12 | . . . 12 . Naked Turns 78 | . . . . 78 Heaviest Build 22 | 12 13 15 22 17 Greatest Support 60 | 20 20 20 60 60 Greatest Overweight (x) . | . . . . . Average Overweight (x) . | . . . . . Largest Inventory Capacity 8 | 8 8 8 8 8 Average Capacity 7 | 8 8 8 8 7 Most Carried 8 | 6 8 8 8 8 Average Carried 7 | 6 6 7 7 7 Final Capacity 8 | 8 8 8 8 5 Final Carried 8 | 6 7 8 8 5 Class Distribution -------------------- 55% | Mutant 44% | Scavenger-Mutant Dominant Class ---------------- Mutant | -10/Materials Mutant | -10/Mines Scavenger-Mutant | -9/Materials Scavenger-Mutant | -9/Mines Resources | -11 -10 -10 -9 -9 ----------- Run | Yrd Mat Min Mat Min Matter Collected 781 | 200 15 32 230 304 Remotely . | . . . . . Salvage Created 956 | . 138 43 365 410 Parts 56 | . 4 10 27 15 Haulers Intercepted 1 | . 1 . . . Recyclers Shooed . | . . . . . Parts Field Recycled . | . . . . . Retrieved Matter . | . . . . . Parts Self-Destructed . | . . . . . Prevented . | . . . . . Parts Restored . | . . . . . Kills | -11 -10 -10 -9 -9 ------- Run | Yrd Mat Min Mat Min Combat Hostiles Destroyed 30 | . 2 6 13 9 Guns 19 | . 1 . 9 9 AOE 10 | . . 6 4 . Classes Destroyed 7 | . 2 1 3 1 Builder 1 | . . . 1 . Hauler 1 | . 1 . . . Recycler 1 | . . . . 1 Swarmer 12 | . . 6 3 3 Grunt 13 | . 2 . 5 6 Brawler 1 | . . . 1 . Sentry 4 | . . . 4 . Best Kill Streak 7 | . 2 3 7 3 Combat Bots Only 7 | . 2 3 7 3 Max Kills in Single Turn 3 | . 1 3 2 1 Gunslinging . | . . . . . Exploded 3 | . . 3 2 . Melee . | . . . . . Uniques/NPCs Destroyed . | . . . . . Combat | -11 -10 -10 -9 -9 -------- Run | Yrd Mat Min Mat Min Hostile Shots Fired 207 | . 10 4 106 87 Missed 66 | . 3 1 36 26 Hits 141 | . 7 3 70 61 Projectile 141 | . 7 3 70 61 AOE 8 | . . . . 8 Critical Strikes 4 | . 1 . 1 2 Damage Taken 1990 | . 92 65 929 904 Core 436 | . 29 . 192 215 Absorbed by Shields . | . . . . . Core Remaining (%) 94 | 100 . 88 . . Volleys Fired 91 | . 13 2 33 43 Largest 2 | . 2 2 2 2 Hottest 100 | . 100 83 70 46 Shots Fired 171 | . 26 4 56 85 Gun 164 | . 26 2 51 85 Cannon . | . . . . . Launcher 7 | . . 2 5 . Special . | . . . . . Kinetic 132 | . . . 47 85 Thermal 32 | . 26 2 4 . Explosive 7 | . . 2 5 . Electromagnetic . | . . . . . Robot Hit Streak 13 | . 10 . 13 9 Robot Miss Streak 4 | . 3 2 3 4 Penetration Max . | . . . . . Secondary Targets 4 | . . . 1 3 Max Gunslinging Chain 1 | . . . 1 1 Shots Hit Robots 102 | . 19 . 36 47 Core Hits 59 | . 6 6 29 18 Critical Kills . | . . . . . Critical Parts Destroyed 1 | . . . . 1 Critical Strikes 3 | . 1 . 1 1 Burn 2 | . 1 . 1 . Destroy 1 | . . . . 1 Melee Attacks . | . . . . . Impact . | . . . . . Slashing . | . . . . . Piercing . | . . . . . Sneak Attacks . | . . . . . Combat Hostiles . | . . . . . Follow-up Attacks . | . . . . . Damage Inflicted 2443 | . 237 290 1226 690 Guns 1355 | . 237 . 430 688 Cannons . | . . . . . Explosions 1086 | . . 290 796 . Melee . | . . . . . Ramming 2 | . . . . 2 Kinetic 1068 | . . . 380 688 Thermal 537 | . 237 . 300 . Explosive 836 | . . 290 546 . Electromagnetic . | . . . . . Impact . | . . . . . Slashing . | . . . . . Piercing . | . . . . . Highest Corruption . | . . . . . Average Corruption . | . . . . . Corruption Purged . | . . . . . Corruption Blocked . | . . . . . Overload Shots . | . . . . . Overflow Damage 132 | . . 41 91 . Projectiles . | . . . . . Explosions 132 | . . 41 91 . Melee . | . . . . . Knockbacks . | . . . . . Impact . | . . . . . Kinetic . | . . . . . Secondary . | . . . . . Self-Inflicted Damage 124 | . . 41 82 1 Shots 2 | . . 1 1 . Rammed 2 | . . . . 2 Targets Rammed 2 | . . . . 2 Kicked . | . . . . . Crushed . | . . . . . Highest Temperature 378 | . 378 21 30 19 Average Temperature 95 | . 164 11 9 4 Received Heat Transfer 549 | . 72 . 252 225 Siege Activations . | . . . . . Martial Activations . | . . . . . Shielding Activations . | . . . . . Robots Disrupted . | . . . . . Combat Hostiles . | . . . . . Robots Corrupted . | . . . . . Combat Hostiles . | . . . . . Parts Fried . | . . . . . Impact Corruptions . | . . . . . Robots Melted 1 | . 1 . . . Combat Hostiles 1 | . 1 . . . Parts Melted 6 | . 4 . 2 . Heat Transferred 1149 | . 777 . 372 . Parts Sabotaged . | . . . . . Parts Stolen . | . . . . . Parts Stripped . | . . . . . Power Chain Reactions . | . . . . . Alert | -11 -10 -10 -9 -9 ------- Run | Yrd Mat Min Mat Min Maximum Alert Level 1 | . . . 1 . Low Security (%) 87 | 100 100 100 49 100 Level 1 12 | . . . 50 . Level 2 . | . . . . . Level 3 . | . . . . . Level 4 . | . . . . . Level 5 . | . . . . . High Security . | . . . . . Max Security . | . . . . . Peak Influence 253 | . 41 144 253 153 Initial 88 | . . . 13 88 Average 73 | . 5 44 154 69 Influence Increases 940 | . 58 154 468 260 Destroy 0b10 Robot/C 600 | . 40 120 260 180 Destroy 0b10 Robot/NC 15 | . 5 . 5 5 Destroy Leader 132 | . 12 20 70 30 Disable Machine 45 | . . . 45 . Destroy Structure 88 | . 1 14 73 . Lose Combat Pursuer 60 | . . . 15 45 Influence Decreases 934 | . 57 121 274 482 Entered New Map 162 | . . 1 21 140 Time Decay 672 | . 47 120 203 302 Lost Part 100 | . 10 . 50 40 Squads Dispatched 3 | . 1 . 2 . Investigation . | . . . . . Extermination . | . . . . . Reinforcement 3 | . 1 . 2 . Assault . | . . . . . Garrison . | . . . . . Intercept . | . . . . . Searches Triggered . | . . . . . Construction Impeded 1 | . . . 1 . Haulers Reinforced . | . . . . . Active Scanning Responses . | . . . . . Cargo Convoy Interrupts . | . . . . . Stealth | -11 -10 -10 -9 -9 --------- Run | Yrd Mat Min Mat Min Distress Signals 3 | . 1 . 2 . Communications Jammed . | . . . . . Distress Signals . | . . . . . Times Spotted 49 | . 5 5 23 16 Peak Tracking Total 10 | . 3 3 10 3 Tactical Retreats 3 | . . . 1 2 Traps | -11 -10 -10 -9 -9 ------- Run | Yrd Mat Min Mat Min Traps Triggered . | . . . . . Indirectly . | . . . . . Trap Hack Attempts . | . . . . . Triggered . | . . . . . Disarmed . | . . . . . Reprogrammed . | . . . . . Reused . | . . . . . Traps Extracted . | . . . . . Installed . | . . . . . Triggered . | . . . . . Machines | -11 -10 -10 -9 -9 ---------- Run | Yrd Mat Min Mat Min Machines Disabled 3 | . . . 3 . Max in Single Turn 2 | . . . 2 . Machines Repaired . | . . . . . Machines Dismantled . | . . . . . Machines Sabotaged . | . . . . . Overloaded Fab Kills . | . . . . . Hacking | -11 -10 -10 -9 -9 --------- Run | Yrd Mat Min Mat Min Machines Accessed 3 | . 2 . 1 . Terminals 3 | . 2 . 1 . Fabricators . | . . . . . Repair Stations . | . . . . . Recycling Units . | . . . . . Scanalyzers . | . . . . . Garrison Access . | . . . . . Total Hacks 6 | . 3 . 3 . Successful . | . . . . . Failed 6 | . 3 . 3 . Catastrophic 2 | . 2 . . . Database Lockouts . | . . . . . Manual 3 | . 3 . . . Terminals 6 | . 3 . 3 . Fabricators . | . . . . . Repair Stations . | . . . . . Recycling Units . | . . . . . Scanalyzers . | . . . . . Garrison Access . | . . . . . Terminal Hacks . | . . . . . Fabricator Hacks . | . . . . . Repair Station Hacks . | . . . . . Recycling Unit Hacks . | . . . . . Scanalyzer . | . . . . . Garrison Access Hacks . | . . . . . Unauthorized Hacks . | . . . . . Terminals . | . . . . . Fabricators . | . . . . . Repair Stations . | . . . . . Recycling Units . | . . . . . Scanalyzers . | . . . . . Garrison Access . | . . . . . Data Cores Recovered . | . . . . . Used . | . . . . . Hacking Detections 3 | . 2 . 1 . Full Trace Events . | . . . . . Feedback Events . | . . . . . Feedback Blocked . | . . . . . Robot Schematics Acquired . | . . . . . Robots Built . | . . . . . Authchips . | . . . . . Time . | . . . . . Total Robot Build Rating . | . . . . . Part Schematics Acquired . | . . . . . Parts Built . | . . . . . Authchips . | . . . . . Time . | . . . . . Total Part Build Rating . | . . . . . Part Studies Acquired . | . . . . . Parts Repaired . | . . . . . Time . | . . . . . Parts Recycled . | . . . . . Recycled Matter . | . . . . . Retrieved Matter . | . . . . . Retrieved Components . | . . . . . Parts Scanalyzed . | . . . . . Part Schematics Acquired . | . . . . . Parts Damaged . | . . . . . Bothacking | -11 -10 -10 -9 -9 ------------ Run | Yrd Mat Min Mat Min Used RIF Installer . | . . . . . Robots Hacked . | . . . . . Non-combat . | . . . . . Combat . | . . . . . Robot Hacks Applied . | . . . . . Relay Couplers Released . | . . . . . Fabnet Peak Effective % . | . . . . . Robots Rewired . | . . . . . Allies Hacked . | . . . . . Hacks Repelled . | . . . . . Allies | -11 -10 -10 -9 -9 -------- Run | Yrd Mat Min Mat Min Total Allies . | . . . . . Largest Group . | . . . . . Highest-Rated Group . | . . . . . Highest-Rated Ally . | . . . . . Total Orders . | . . . . . Ally Attacks . | . . . . . Total Damage . | . . . . . Kills . | . . . . . Allies Corrupted . | . . . . . Allies Melted . | . . . . . Intel | -11 -10 -10 -9 -9 ------- Run | Yrd Mat Min Mat Min Active Infowar (turns) 1729 | . 131 493 497 608 Terrain 1729 | . 131 493 497 608 Robot Analysis Total . | . . . . . Derelict Logs Recovered 1 | . . 1 . . Drone Launches . | . . . . . Drone Recoveries . | . . . . . Exploration | -11 -10 -10 -9 -9 ------------- Run | Yrd Mat Min Mat Min Turns Passed 2037 | 22 323 493 497 702 Spaces Moved 1331 | 16 216 396 253 450 Core 108 | . . . . 108 Treads 311 | . . . 159 152 Legs 912 | 16 216 396 94 190 Wheels . | . . . . . Hover . | . . . . . Flight . | . . . . . Fastest Speed 50 | 120 120 120 120 50 Average Speed 123 | 120 120 120 145 116 Slowest Speed 160 | 120 120 120 160 160 Overloaded Moves . | . . . . . Propulsion Burnouts . | . . . . . Robots Hopped . | . . . . . Potential Cave-ins . | . . . . . Cave-ins Triggered . | . . . . . Exploration Rate (%) 45 | 2 31 91 24 77 Regions Visited 4 Branch Regions 2 Pre-discovered Areas 1 | . . 1 . . Known Exits Taken 1 | . . 1 . . Unknown Exits Taken 3 | 1 1 . 1 . Scrap Searched 3 | . . 2 . 1 Spaces Dug . | . . . . . Terrain Destroyed 94 | . . 14 80 . Melee . | . . . . . Projectile . | . . . . . AOE 94 | . . 14 80 . Terrain Rammed . | . . . . . Walls Destroyed . | . . . . . Machines Disabled . | . . . . . Actions | -11 -10 -10 -9 -9 --------- Run | Yrd Mat Min Mat Min Total 1564 | 19 254 411 329 551 Wait 85 | 4 19 6 21 35 Move 1327 | 15 215 395 252 450 Hop . | . . . . . Pick Up 23 | . 4 3 7 9 Fast Attach 3 | . . . 3 . Attach 12 | . 2 . 5 5 Detach 1 | . . . . 1 Swap 7 | . . 2 4 1 Drop 13 | . 1 3 4 5 Fire 91 | . 13 2 33 43 Melee . | . . . . . Ram 2 | . . . . 2 Kick . | . . . . . Crush . | . . . . . Escape Stasis . | . . . . . Rewire . | . . . . . Trap . | . . . . . Miscellaneous . | . . . . . Route ------- -11/Scrapyard -10/Materials (discovered 2 exits: *Mat / [*Min]) -10/Mines (discovered 2 exits: *Mat x2) -9/Materials -9/Mines (discovered 2 exits: [*Mat x2]) History --------- Turn | Location | Event 1 | -11/Scrapyard | Discovered new exit (range 1) 23 | -11/Scrapyard | Entered Materials 309 | -10/Materials | Discovered new exit (range 16) 316 | -10/Materials | Build established: Mutant 317 | -10/Materials | Discovered new exit (range 9) 346 | -10/Materials | Entered Mines 347 | -10/Mines | Learned location of Storage (-8) 418 | -10/Mines | Found a damaged Exp. Sensor Array with a note attached 421 | -10/Mines | Found Prototype Device 453 | -10/Mines | Received a Rocket Launcher from a helpful Derelict 462 | -10/Mines | Identified exit to Materials 602 | -10/Mines | Discovered exit to Materials (range 12) 839 | -10/Mines | Entered Materials 839 | -9/Materials | Evolved 2 slots: Propulsion x1, Utility x1 1014 | -9/Materials | Lost 4 parts (1p2n1w) 1033 | -9/Materials | Destroyed 7 combat bots 1255 | -9/Materials | Discovered new exit (range 16) 1336 | -9/Materials | Entered Mines 1377 | -9/Mines | Core integrity fell below 50% 1388 | -9/Mines | Build established: Scavenger-Mutant 1470 | -9/Mines | Discovered new exit (range 9) 1738 | -9/Mines | Discovered new exit (range 11) 1881 | -9/Mines | Assembled infested the area 1948 | -9/Mines | Core integrity fell below 20% 1960 | -9/Mines | Released all parts (6) 1981 | -9/Mines | Lost 3 parts (1n1u1w) 2028 | -9/Mines | YI-UF0 nonchalantly dropped a Grenade Launcher on the ground 2038 | -9/Mines | Destroyed by as-49588 with Assembled Rifle Last Messages --------------- 01948_ as-35100 destroyed. 01950_ Hvy. Assault Rifle destroyed. 01950_ Aluminum Leg destroyed. 01954_ The unstable cave ceiling collapses. 01958_ T-07 Excavator destroyed. 01960_ The unstable cave ceiling collapses. 01960_ R-06 Scavenger destroyed. 01960_ Released Ion Engine. 01960_ Released Aluminum Leg. 01960_ Released Targeting Computer. 01960_ Released Sml. Storage Unit. 01960_ Released Lgt. Assault Rifle. [Achievement: Live, Flee, And Rebuild] 01971_ Slammed into K-01 Serf. [Achievement: For Emergencies Only] 01972_ Slammed into T-07 Excavator. 02028_ YI-UF0 nonchalantly drops a Grenade Launcher on the ground. 02030_ Dropped Lgt. Treads. 02030_ Acquired Grenade Launcher. 02036_ The unstable cave ceiling collapses. Map ----- +----------------------------------------------------+ | ??????????????????????????##### ##?## | | ??????????????????????????# ##???? | | ??????????????????#???????# ###??? | | ?????????????????????????## ### ### | | ?????????????????????????# # | | ?????????????????????????# # | | ????????????????????????# % | | ???????????????????????# % # # | | ???????????????????????# # | | ????????????????????? ## != | | ??????????????????a #?#### !* | | ?????????????????? #### ?????#### != | | ??????????????????= ???######???#?????# | | ?????????????????? a ?????????????????# | | ?????????????????? ?? ???????????????## | | ??????????????????! ????????#??????????### | | ???????????????###%??????????????????????# | | ???????????????# *??????????????????????# | | ??????????????? ??????????????????????# | | ???????????????? =???????????????######## | | ???????????????? ???????????????# % % | | ???????????????? ???????????????# ###### | | ???????????????? #???????????#???# #????? | | ????????????????# #??????????? ???# #????? | | ????????????????# #???????????# ??# #????? | | ????????????????#@#???????#???# ??# #????? | | ????????????????# #???????# ??# #?# #????? | | ????????????????# #???????# ## ## #????? | | ????????????????# #???????# ##???? | | ???????????????## #????????### #???? | | ???????????????# ####???????# #???? | | ???????????????# #######?# * ##???? | | ???????????????## ######% #???#? | | ??????####?????## # ##### #?#### #??#?? | | ?????## ##?????##### #???# ### #????? | | ?????# #?????????# #???# #####?#??? | | ?????# #?????????# #???##### #????????? | | ????## ##?????????# ######??# #??????### | | ????# #??# #######= #??# #??#??## | | ????# ##?# ####$#??# #?????# | | ????# ##?######## #??# ##?# #???#?# | | ????# ##????### #### ### #?????## | | ????## ##??## ## ## #????#?## | | ?????##### #### ## #???????## | | ?????????## ## #???#???## | | ??????????### #### ####???????# | | ????????????## #??# #?????????## | | ?????????????# #??# ##??????????## | | ?????????????# #??# ##????????????# | | ?????????????# ##??## ##?????????????# | +----------------------------------------------------+ Best States ------------- Heat Dissipation 28 Energy Generation 10 Energy Capacity 250 Matter Stores 300 Matter Capacity 300 Sight Range 16 Terrain Scan Range 14 Terrain Scan Density 10 Evasion (%) 55 Targeting Accuracy 5 Recoil Reduction 3 Item Schematics ----------------- None Robot Schematics ------------------ None Fabricated ------------ Nothing Repaired ---------- Nothing Studied --------- None Alien Tech Used ----------------- None Achievements -------------- For Emergencies Only Live, Flee, And Rebuild Organ Harvest Overwhelming Resistances Are Futile There's More Where That Came From Challenges ------------ None Game ------ Seed HeavyStorageShredder Manual? 0 Play Time 00:25:45 Cumulative 135.5 hours Start 2026.02.06 @ 18:40:08 End 2026.02.06 @ 19:01:33 Sessions 2 Manual Loads 0 Difficulty Rogue Special Mode None Game No. 215 Rogue 215 Adventurer 0 Explorer 0 Win Type - Total 1 Types 1/0/0/0/0/0/0/0/0/0 Lore% 33 Gallery% 50 Achievement% 27 Wizard Run 0 Options --------- Layout 0 ASCII 0 Keyboard 1 Movement Numpad Keybinds 0 Fullscreen 1 Font 18/SmallcapsGlow Map View 76x50 Zoom Use 0% Tactical HUD 1 Map Filters NONE Filters NONE Steam 1 RUN: 976a1a5d-a99a-4fde-8d91-ddc757dbf808